bitfinex/quotes_ETHUSD_20240927
["timestamp","ask_amount","ask_price","bid_price","bid_amount"]
[1727427959479,3.74335,2671.4,2671.0,0.7626]
[1727427960263,3.74351,2671.3,2671.0,0.7626]
[1727427960470,3.74364,2671.2,2670.6,0.7835]
[1727427960666,3.74392,2671.0,2670.6,0.7835]
[1727427961787,4.50037,2671.2,2670.6,0.7835]
[1727427962482,3.7438,2671.1,2670.6,0.7835]
[1727427963701,3.74391,2671.0,2670.6,0.7835]
[1727427964597,4.50037,2671.2,2670.6,0.7835]
[1727427964788,3.74383,2671.1,2670.6,0.7835]
[1727427964990,3.74367,2671.2,2670.6,1.536325]
[1727427965615,3.74367,2671.2,2670.6,4.536325]
[1727427965966,4.5713,2671.4,2670.6,4.536325]
[1727427966121,4.5713,2671.4,2670.9,0.7536]
[1727427966122,3.7434,2671.4,2670.9,0.7536]
[1727427966302,3.7434,2671.4,2671.1,0.7536]
[1727427966502,3.74371,2671.2,2670.8,0.7536]
[1727427966819,3.74344,2671.4,2670.8,0.82848167]
[1727427967021,3.74344,2671.4,2670.9,0.45727817]
[1727427967993,3.74355,2671.3,2670.9,0.45727817]
[1727427968302,3.74393,2671.0,2670.6,0.7925]
[1727427969401,3.7441,2670.9,2670.6,0.7925]
[1727427969811,3.74393,2671.0,2670.6,0.7925]
[1727427970006,3.74406,2670.9,2670.6,0.7925]
[1727427970221,3.74393,2671.0,2670.6,0.7925]
[1727427970623,3.74393,2671.0,2670.6,1.17175]
[1727427971359,4.56658,2671.2,2670.6,1.17175]
[1727427971360,3.74368,2671.2,2670.6,1.17175]
[1727427971815,3.74368,2671.2,2670.6,0.7925]
[1727427972214,3.74408,2670.9,2670.6,0.7925]
[1727427972522,3.74392,2671.0,2670.6,0.7925]
[1727427972924,3.74379,2671.1,2670.6,1.546225]
[1727427973526,7.4877,2671.1,2670.6,1.546225]
[1727427973755,3.744,2671.0,2670.6,1.546225]
[1727427975062,3.74409,2670.9,2670.6,1.546225]
[1727427975258,3.74409,2670.9,2670.6,0.7925]
[1727427976615,3.74429,2670.8,2670.6,0.7925]
[1727427977019,7.48828,2670.9,2670.6,0.7925]
[1727427977268,7.48827,2670.9,2670.6,0.7925]
[1727427977478,3.74422,2670.8,2670.6,0.7925]
[1727427980158,3.74409,2670.9,2670.6,0.7925]
[1727427981014,3.74422,2670.8,2670.6,0.7925]
[1727427981681,3.74409,2670.9,2670.6,0.7925]
[1727427981876,3.74422,2670.8,2670.6,0.7925]
[1727427984177,3.74422,2670.8,2670.4,0.7826]
[1727427984477,3.74409,2670.9,2670.4,0.7826]
[1727427984636,3.74435,2670.7,2670.4,0.7826]
[1727427985572,3.74422,2670.8,2670.4,0.7826]
[1727427985775,3.74422,2670.8,2670.4,1.235359]
[1727427985935,3.74409,2670.9,2670.4,1.235359]
[1727427986597,3.74409,2670.9,2670.4,4.980069]
[1727427990288,3.74409,2670.9,2670.4,1.235359]
[1727427990618,3.74409,2670.9,2670.4,0.7826]
[1727427992280,7.48826,2670.9,2670.4,0.7826]
[1727427992481,3.74409,2670.9,2670.4,0.7826]
[1727427992992,7.48825,2670.9,2670.4,0.7826]
[1727427993414,3.74409,2670.9,2670.4,0.7826]
[1727427995015,3.74409,2670.9,2670.4,5.654589]
[1727427995214,3.74409,2670.9,2670.4,1.909839]
[1727427995903,3.74393,2671.0,2670.4,5.654559]
[1727427998229,11.43457314,2671.5,2670.8,3.74414]
[1727427998389,7.4866,2671.5,2670.9,1.150814]
[1727427998594,3.74327,2671.5,2670.9,1.150814]
[1727427999331,7.48661,2671.5,2670.9,1.150814]
[1727428000032,3.7435,2671.3,2670.9,1.150814]
[1727428000629,7.48709,2671.3,2670.9,1.150814]
[1727428001207,3.74365,2671.2,2670.9,1.150814]
[1727428001515,3.74365,2671.2,2670.9,0.7764]
[1727428001914,7.3,2671.9,2670.9,0.7764]
[1727428002115,3.74265,2671.9,2671.3,0.8087]
[1727428002314,3.74265,2671.9,2671.3,0.88355455]
[1727428002498,3.74265,2671.9,2671.5,0.8087]
[1727428005151,3.74244,2672.1,2671.5,0.88355461]
[1727428005491,3.74244,2672.1,2671.5,0.8087]
[1727428005828,3.74265,2671.9,2671.5,0.8087]
[1727428011034,3.74244,2672.1,2671.5,0.8087]
[1727428011295,3.74211,2672.3,2671.7,0.754]
[1727428011814,3.74224,2672.2,2671.8,0.38288486]
[1727428012018,3.74211,2672.3,2671.9,0.7739]
[1727428012517,3.74225,2672.2,2671.9,0.7739]
[1727428012718,3.74211,2672.3,2671.9,0.7739]
[1727428013086,3.74224,2672.2,2671.9,0.7739]
[1727428014133,3.74224,2672.2,2671.9,1.18957849]
[1727428014676,3.74187,2672.5,2671.9,1.18957849]
[1727428014887,8.0578,2672.8,2672.1,0.8262]
[1727428014888,3.74164,2672.7,2672.1,0.8262]
[1727428016029,3.74184,2672.5,2672.1,0.8262]
[1727428016201,3.74205,2672.4,2672.1,0.8262]
[1727428017035,3.74209,2672.3,2672.1,0.8262]
[1727428018339,3.74196,2672.4,2672.1,0.8262]
[1727428018517,3.74184,2672.5,2672.1,0.8262]
[1727428018518,3.7421,2672.3,2672.1,0.8262]
[1727428020029,7.48324,2672.7,2672.1,0.8262]
[1727428020333,7.48324,2672.7,2672.1,0.90103803]
[1727428020334,3.74171,2672.6,2672.1,0.90103803]
[1727428020637,3.74171,2672.6,2672.1,1.2905638]
[1727428021702,3.74158,2672.7,2672.1,1.2905638]
[1727428021703,3.74193,2672.5,2672.1,1.2905638]
[1727428021906,3.74169,2672.6,2672.1,0.8262]
[1727428022511,3.74186,2672.5,2672.1,0.8262]
[1727428023521,3.74197,2672.4,2672.1,0.8262]
[1727428024112,3.74186,2672.5,2672.1,0.8262]
[1727428025619,3.74156,2672.7,2672.1,0.8262]
[1727428026211,3.74169,2672.6,2672.1,1.583075]
[1727428026622,3.74184,2672.5,2672.1,1.583075]
[1727428026958,3.74184,2672.5,2672.1,0.8262]
[1727428027258,3.74156,2672.7,2672.1,0.8262]
[1727428027425,3.74156,2672.7,2672.1,3.8262]
[1727428027960,3.74168,2672.6,2672.1,0.8262]
[1727428028321,3.74182,2672.5,2672.1,0.8262]
[1727428028826,3.74168,2672.6,2672.1,0.8262]
[1727428030460,11.04142,2672.8,2672.1,0.8262]
[1727428030461,11.04142,2672.8,2672.1,1.957321]
[1727428030629,12.22,2673.2,2672.4,0.77]
[1727428030630,3.74117,2673.0,2672.4,0.77]
[1727428031759,11.04088,2673.2,2672.7,3.0]
[1727428032069,3.74088,2673.2,2672.8,0.8164]
[1727428033164,3.74056,2673.4,2672.8,0.8164]
[1727428033346,3.74056,2673.4,2672.8,1.572195]
[1727428033960,3.74056,2673.4,2672.9,3.0]
[1727428034263,7.48125,2673.4,2672.9,3.0]
[1727428034419,3.74056,2673.4,2672.9,3.0]
[1727428034625,3.74056,2673.4,2672.9,3.8313495]
[1727428036035,0.39118731,2673.7,2673.0,3.74106]
[1727428036273,4.13134731,2673.7,2673.2,0.766]
[1727428036563,3.74005,2673.8,2673.2,0.84080859]
[1727428036862,3.74005,2673.8,2673.3,0.45817586]
[1727428037064,3.74005,2673.8,2673.4,0.766]
[1727428037273,11.03974,2674.0,2673.4,0.766]
[1727428037481,0.39116447,2674.3,2673.6,0.8037]
[1727428037639,0.39116447,2674.3,2673.8,0.8037]
[1727428037841,0.39116447,2674.3,2673.9,0.46185855]
[1727428038044,3.7392,2674.4,2673.8,4.54366]
[1727428038559,3.73961,2674.1,2673.8,0.8037]
[1727428038749,3.73931,2674.3,2673.8,0.8037]
[1727428039154,3.73945,2674.2,2673.8,0.8037]
[1727428040436,3.73917,2674.4,2673.8,1.558096]
[1727428040637,3.73929,2674.3,2673.8,1.558096]
[1727428041103,3.73958,2674.1,2673.9,0.7964]
[1727428041991,3.73958,2674.1,2673.5,0.8094]
[1727428042139,3.73932,2674.3,2673.7,0.7891]
[1727428042338,3.73907,2674.5,2673.8,3.0]
[1727428042553,3.73907,2674.5,2673.9,0.86388792]
[1727428042755,3.73907,2674.5,2673.9,1.54948779]
[1727428042944,3.73907,2674.5,2673.9,1.62427536]
[1727428043684,3.73915,2674.4,2673.9,1.54948779]
[1727428043869,3.73931,2674.3,2673.9,0.7891]
[1727428044458,0.7546,2674.8,2673.9,0.7891]
[1727428044659,3.73912,2674.5,2673.9,3.07478768]
[1727428044975,0.7546,2674.8,2674.0,1.49166677]
[1727428044976,3.73897,2674.6,2674.0,1.49166677]
[1727428045574,3.73897,2674.6,2674.1,0.8102]
[1727428045775,3.73862,2674.8,2674.1,0.8102]
[1727428045995,3.73836,2675.0,2674.4,0.8102]
[1727428046214,3.73806,2675.2,2674.6,0.7948]
[1727428046410,3.73819,2675.1,2674.6,0.7948]
[1727428048102,3.73835,2675.0,2674.6,0.7948]
[1727428048309,3.73819,2675.1,2674.6,0.7948]
[1727428048472,3.73819,2675.1,2674.6,1.62442876]
[1727428049494,3.73886,2674.7,2674.4,0.8122]
[1727428049718,3.73834,2675.0,2674.4,0.8122]
[1727428050008,0.8323,2675.2,2674.4,0.8122]
[1727428050204,1.5623,2675.2,2674.4,0.8122]
[1727428050405,3.7389,2674.6,2674.4,0.8122]
[1727428050707,3.73877,2674.7,2674.4,0.8122]
[1727428051065,3.73899,2674.6,2674.4,0.8122]
[1727428051273,3.73864,2674.8,2674.4,0.8122]
[1727428051590,3.73873,2674.7,2674.4,0.8122]
[1727428052179,3.73847,2674.9,2674.4,0.8122]
[1727428053478,3.73825,2675.1,2674.4,3.73913]
[1727428053777,0.39116957,2674.9,2674.5,1.8415143]
[1727428054485,0.39116957,2674.9,2674.5,0.7862]
[1727428055273,4.12965957,2674.9,2674.5,0.7862]
[1727428055476,3.73861,2674.8,2674.5,0.7862]
[1727428055680,3.73873,2674.7,2674.5,0.7862]
[1727428056372,3.73873,2674.7,2674.1,3.0]
[1727428056653,3.73902,2674.5,2674.3,0.8326]
[1727428056966,3.73873,2674.7,2674.3,0.8326]
[1727428057930,7.86820957,2674.9,2674.3,0.8326]
[1727428058123,4.12962957,2674.9,2674.5,0.792]
[1727428058661,3.73861,2674.8,2674.5,0.792]
[1727428058867,7.86820957,2674.9,2674.5,0.792]
[1727428059020,4.12962957,2674.9,2674.5,0.792]
[1727428059216,3.73885,2674.7,2674.5,0.792]
[1727428059451,3.73887,2674.6,2674.2,0.8226]
[1727428059755,3.73885,2674.7,2674.2,0.8226]
[1727428059756,3.73885,2674.7,2674.2,1.52657]
[1727428060362,7.47771,2674.7,2674.2,1.52657]
[1727428060527,3.73899,2674.6,2674.2,1.52657]
[1727428060722,3.73885,2674.7,2674.2,1.52657]
[1727428060927,3.73885,2674.7,2674.2,0.8226]
[1727428062942,7.47705,2674.9,2674.2,4.56202]
[1727428063141,3.7385,2674.9,2674.3,3.0]
[1727428063368,3.73872,2674.8,2674.3,3.0]
[1727428063677,3.73872,2674.8,2674.3,3.756202]
[1727428064199,3.73872,2674.8,2674.4,0.7946]
[1727428064797,3.73847,2674.9,2674.4,0.7946]
[1727428065194,3.73834,2675.0,2674.4,0.7946]
[1727428065508,3.73834,2675.0,2674.5,0.8290092]
[1727428065666,3.73834,2675.0,2674.6,0.8116]
[1727428066168,3.73809,2675.2,2674.6,4.55046]
[1727428066504,7.3,2675.3,2674.6,4.55046]
[1727428066505,11.03793,2675.3,2674.7,3.7524]
[1727428066661,7.3,2675.3,2674.7,4.96578251]
[1727428066862,4.12889585,2675.4,2674.7,4.96578251]
[1727428066863,4.12889585,2675.4,2674.9,0.7524]
[1727428067057,3.73792,2675.3,2674.9,0.7524]
[1727428067317,3.73792,2675.3,2674.9,1.24897825]
[1727428068369,7.47595,2675.3,2674.9,1.24897825]
[1727428068569,3.73792,2675.3,2674.9,1.24897825]
[1727428068872,4.12897585,2675.4,2674.9,1.24897825]
[1727428069079,4.12897585,2675.4,2675.0,0.02426535]
[1727428069607,0.39111585,2675.4,2675.0,0.02426535]
[1727428069963,3.73798,2675.3,2675.0,0.02426535]
[1727428070564,3.73813,2675.2,2675.0,0.02426535]
[1727428070764,3.73817,2675.1,2675.0,0.02426535]
[1727428071205,3.73805,2675.2,2675.0,0.02426535]
[1727428071615,3.73817,2675.1,2675.0,0.02426535]
[1727428072625,0.39111585,2675.4,2675.0,0.02426535]
[1727428072847,0.39111585,2675.4,2675.1,0.7843]
[1727428073220,0.39111585,2675.4,2675.3,0.7765]
[1727428073556,0.39111585,2675.4,2675.3,1.23543134]
[1727428073941,3.73733,2675.8,2675.3,1.23543134]
[1727428074140,0.7946,2676.2,2675.3,1.23543134]
[1727428074141,3.73764,2675.5,2675.3,1.23543134]
[1727428074324,3.73775,2675.4,2675.3,0.7765]
[1727428075427,3.73775,2675.4,2675.1,0.7534]
[1727428075628,3.73803,2675.2,2675.1,0.7534]
[1727428077654,3.73817,2675.1,2675.0,0.02426535]
[1727428077981,5.27359,2675.1,2675.0,0.02426535]
[1727428082181,3.73817,2675.1,2675.0,0.02426535]
[1727428085080,5.06217,2675.1,2675.0,0.02426535]
[1727428089509,5.45330056,2675.1,2675.0,0.02426535]
[1727428091903,5.45330056,2675.1,2674.3,0.7889]
[1727428091904,3.73933,2674.3,2674.1,0.7817]
[1727428092280,3.73905,2674.5,2674.1,0.7817]
[1727428092487,7.47816,2674.5,2674.1,0.7817]
[1727428092888,3.73905,2674.5,2674.1,0.7817]
[1727428093414,3.73878,2674.7,2674.2,0.7665]
[1727428093783,3.73889,2674.6,2674.2,0.7665]
[1727428094605,3.73909,2674.5,2674.2,0.7665]
[1727428094844,3.73945,2674.2,2673.7,0.7665]
[1727428095143,3.73961,2674.1,2673.7,1.517184]
[1727428098445,3.73943,2674.2,2673.8,0.7683]
[1727428098641,3.73929,2674.3,2673.9,0.4518984]
[1727428098849,3.73929,2674.3,2674.0,0.7683]
[1727428099047,7.47868,2674.3,2674.0,0.7683]
[1727428099209,3.73945,2674.2,2674.0,0.7683]
[1727428101155,3.73929,2674.3,2674.0,0.7683]
[1727428104172,3.73901,2674.5,2674.0,0.7683]
[1727428104359,3.73901,2674.5,2674.1,0.7869]
[1727428104555,3.73916,2674.4,2674.1,0.7869]
[1727428105936,3.73901,2674.5,2674.1,0.7869]
[1727428106143,3.7393,2674.3,2674.1,0.7869]
[1727428106359,4.11336,2674.2,2674.1,0.7869]
[1727428106681,3.73977,2674.0,2673.6,0.7869]
[1727428110570,3.73958,2674.1,2673.6,0.7869]
[1727428111277,3.73943,2674.2,2673.6,0.8616967]
[1727428111472,3.73943,2674.2,2673.8,0.7869]
[1727428111673,3.73943,2674.2,2673.8,1.54709167]
[1727428112394,7.479,2674.2,2673.8,1.54709167]
[1727428112698,3.73934,2674.3,2673.8,0.7869]
[1727428113601,3.73946,2674.2,2673.8,0.7869]
[1727428113903,3.73957,2674.1,2673.8,0.7869]
[1727428118525,3.73934,2674.3,2673.9,0.7869]
[1727428118677,3.73907,2674.5,2674.0,0.07478649]
[1727428118877,3.73917,2674.4,2674.0,0.7869]
[1727428119192,3.7393,2674.3,2674.0,0.7869]
[1727428120418,3.73957,2674.1,2674.0,0.7869]
[1727428120619,7.4787,2674.3,2674.0,0.7869]
[1727428120801,3.7393,2674.3,2674.0,0.78022]
[1727428121607,7.47872,2674.3,2674.0,0.78022]
[1727428121803,3.73946,2674.2,2674.0,0.78022]
[1727428122422,7.3,2674.7,2674.0,1.158242]
[1727428122721,3.7393,2674.3,2674.0,1.158242]
[1727428123915,3.73911,2674.5,2674.0,1.158242]
[1727428124823,3.73917,2674.4,2674.0,1.158242]
[1727428126122,3.7393,2674.3,2674.0,1.158242]
[1727428126311,3.7393,2674.3,2674.0,0.78022]
[1727428126714,3.73957,2674.1,2674.0,0.78022]
[1727428129247,3.73985,2673.9,2673.8,3.7869]
[1727428130893,3.73939,2674.3,2673.8,4.16559]
[1727428131313,3.73939,2674.3,2673.8,1.16559]
[1727428131858,3.73944,2674.2,2673.8,1.16559]
[1727428132663,3.73939,2674.3,2673.8,1.16559]
[1727428132875,3.73903,2674.5,2673.9,0.90029266]
[1727428133021,3.73924,2674.4,2673.9,0.8255]
[1727428133360,3.73932,2674.3,2673.9,0.8255]
[1727428136167,3.73979,2674.0,2673.7,0.8088]
[1727428141434,3.7396,2674.1,2673.7,0.8088]
[1727428142768,3.73981,2674.0,2673.4,0.8242]
[1727428142979,3.73981,2674.0,2673.4,4.53936752]
[1727428143191,8.23788,2674.2,2673.4,8.27991752]
[1727428143485,8.23788,2674.2,2673.5,3.7404]
[1727428143486,4.49836,2674.2,2673.5,3.7404]
[1727428143688,4.49836,2674.2,2673.6,2.02013175]
[1727428143890,3.73918,2674.4,2673.7,0.89290272]
[1727428144097,3.73918,2674.4,2673.7,4.55821]
[1727428144590,3.73918,2674.4,2673.8,0.8275]
[1727428145192,7.47845,2674.4,2673.8,0.8275]
[1727428145562,3.73918,2674.4,2673.8,0.8275]
[1727428149604,3.73931,2674.3,2673.8,0.8275]
[1727428149795,3.73918,2674.4,2673.8,0.8275]
[1727428150001,3.73918,2674.4,2673.8,1.66574944]
[1727428151211,3.7393,2674.3,2673.8,1.66574944]
[1727428151779,3.73918,2674.4,2673.8,1.66574944]
[1727428152384,7.47846,2674.4,2673.8,1.66574944]
[1727428152585,3.73918,2674.4,2673.8,1.66574944]
[1727428153198,7.47844,2674.4,2673.8,1.66574944]
[1727428153508,3.73931,2674.3,2673.8,1.66574944]
[1727428155007,3.73931,2674.3,2673.8,0.8275]
[1727428155424,3.73949,2674.2,2673.6,0.7596]
[1727428155585,3.73986,2673.9,2673.6,0.7596]
[1727428156818,3.73956,2674.2,2673.6,0.7596]
[1727428157026,0.373956,2674.1,2673.6,0.7596]
[1727428157179,7.3,2674.7,2673.4,0.8206]
[1727428157180,3.7401,2673.8,2673.4,0.8206]
[1727428157619,4.56471,2673.5,2672.9,0.8206]
[1727428157960,3.7408,2673.3,2672.5,0.8206]
[1727428158231,3.7408,2673.3,2672.5,1.276854]
[1727428158394,3.7408,2673.3,2672.5,5.018624]
[1727428158718,3.7408,2673.3,2672.5,5.018644]
[1727428159625,3.7408,2673.3,2672.6,3.0]
[1727428159981,3.7408,2673.3,2672.6,3.74166]
[1727428160226,4.56473,2673.5,2672.6,3.74166]
[1727428160227,3.74057,2673.4,2672.7,3.74148]
[1727428160592,3.74057,2673.4,2672.6,4.9176934]
[1727428161221,3.74057,2673.4,2672.8,0.7642]
[1727428162884,7.48125,2673.4,2672.8,0.7642]
[1727428163084,4.57070549,2673.4,2672.8,0.7642]
[1727428164800,4.57070549,2673.4,2672.8,4.50558]
[1727428165023,7.3,2673.7,2673.1,0.7642]
[1727428165235,0.7692,2673.8,2673.1,0.7642]
[1727428165535,3.74016,2673.7,2673.1,4.50508]
[1727428166092,3.74016,2673.7,2673.1,0.7642]
[1727428166334,0.824944,2673.6,2673.1,0.7642]
[1727428166536,4.565304,2673.6,2673.1,0.7642]
[1727428167333,3.74036,2673.6,2673.1,0.7642]
[1727428167540,4.50928,2673.8,2673.1,4.50516]
[1727428167693,7.47963,2674.0,2673.4,0.8147]
[1727428167904,3.73978,2674.0,2673.4,0.8147]
[1727428170023,7.47961,2674.0,2673.4,0.8147]
[1727428170222,3.73978,2674.0,2673.4,0.8147]
[1727428170429,3.73978,2674.0,2673.4,4.55525]
[1727428170737,7.47963,2674.0,2673.4,4.55525]
[1727428171238,3.73978,2674.0,2673.4,4.55525]
[1727428171745,3.73986,2673.9,2673.4,4.55525]
[1727428173245,3.73978,2674.0,2673.4,4.55525]
[1727428173740,3.73978,2674.0,2673.4,0.8147]
[1727428174052,4.195478,2674.0,2673.4,0.8147]
[1727428174272,3.73947,2674.2,2673.4,0.7796]
[1727428174566,3.73947,2674.2,2673.6,0.7796]
[1727428174708,3.73947,2674.2,2673.7,3.74013]
[1727428175052,3.73947,2674.2,2673.8,0.7796]
[1727428175403,4.48923,2674.4,2673.8,0.7796]
[1727428175608,3.73923,2674.4,2673.8,1.231563]
[1727428175850,3.73933,2674.3,2673.8,1.231563]
[1727428176053,3.73933,2674.3,2673.8,0.7796]
[1727428177535,3.73963,2674.1,2673.8,0.7796]
[1727428177712,0.8078,2674.2,2673.8,0.7796]
[1727428177904,4.54734,2674.2,2673.8,0.7796]
[1727428178755,1.636454,2674.2,2673.6,0.8]
[1727428178959,3.73999,2673.8,2673.4,0.8]
[1727428179111,3.74027,2673.6,2673.0,0.8]
[1727428179430,3.74027,2673.6,2673.0,1.534]
[1727428179635,3.74027,2673.6,2673.1,4.54097]
[1727428180010,3.74043,2673.5,2673.1,0.8]
[1727428180210,3.74027,2673.6,2673.1,0.8]
[1727428180437,4.488302,2673.6,2673.1,0.8]
[1727428180693,7.3,2674.0,2672.7,0.8]
[1727428180694,3.7408,2673.3,2672.7,0.8]
[1727428181181,3.74085,2673.2,2672.7,0.8]
[1727428182689,3.74086,2673.2,2672.7,0.8]
[1727428183184,4.507,2673.3,2672.7,0.8]
[1727428184185,3.7408,2673.3,2672.7,4.54151]
[1727428184487,3.7408,2673.3,2672.7,5.669854]
[1727428185944,3.7408,2673.3,2672.7,4.54151]
[1727428186472,3.7408,2673.3,2672.8,0.8255]
[1727428187603,0.8215,2673.5,2672.8,0.8255]
[1727428187765,11.04019,2673.7,2672.2,0.7859]
[1727428187766,3.7412,2673.0,2672.2,0.7859]
[1727428187964,3.7412,2673.0,2672.3,3.74198]
[1727428188165,3.74136,2672.9,2672.4,0.7859]
[1727428188497,3.7412,2673.0,2672.4,0.7859]
[1727428188796,4.197,2673.0,2672.4,0.7859]
[1727428189382,3.74143,2672.8,2672.4,0.7859]
[1727428189712,4.197,2673.0,2672.4,0.7859]
[1727428189993,3.74127,2672.9,2672.4,0.7859]
[1727428190500,4.197,2673.0,2672.4,0.7859]
[1727428190680,3.74155,2672.7,2672.4,0.7859]
[1727428190854,4.54255,2672.7,2672.0,0.8017]
[1727428191364,0.801,2672.7,2672.0,4.54411]
[1727428191921,4.54258,2672.7,2672.0,4.54411]
[1727428192093,4.54258,2672.7,2672.1,3.74236]
[1727428193187,3.74158,2672.7,2672.2,0.7621]
[1727428194991,3.74117,2673.0,2672.3,0.8283]
[1727428195288,3.74155,2672.7,2672.3,0.8283]
[1727428196093,3.74167,2672.6,2672.3,0.8283]
[1727428196875,3.74183,2672.5,2671.9,0.7757]
[1727428197183,3.74167,2672.6,2671.9,5.40832781]
[1727428199676,3.74167,2672.6,2672.0,0.8105]
[1727428200300,3.74167,2672.6,2672.0,4.55299]
[1727428200803,3.74167,2672.6,2672.1,0.833]
[1727428201400,3.74141,2672.8,2672.2,0.7616]
[1727428201963,3.74154,2672.7,2672.2,0.7616]
[1727428202164,3.74141,2672.8,2672.3,0.7579]
[1727428202760,3.74168,2672.6,2672.3,0.7579]
[1727428203679,3.74155,2672.7,2672.3,0.7579]
[1727428209091,8.0521,2673.0,2672.3,0.7579]
[1727428209309,3.74176,2672.6,2672.3,0.7579]
[1727428210533,3.74192,2672.5,2672.3,0.7579]
[1727428210824,3.74176,2672.6,2672.3,0.7579]
[1727428211124,3.74218,2672.3,2671.9,0.7843]
[1727428211309,3.74228,2672.2,2671.9,0.7843]
[1727428212779,3.74251,2672.0,2671.4,0.7796]
[1727428212983,0.8,2672.2,2671.4,0.7796]
[1727428212984,3.74321,2671.5,2671.4,0.7796]
[1727428213289,3.74309,2671.6,2671.4,0.7796]
[1727428213489,3.74309,2671.6,2671.1,0.7796]
[1727428214959,3.74303,2671.7,2671.1,0.7796]
[1727428215120,3.74323,2671.5,2671.1,0.7796]
[1727428217061,3.74303,2671.7,2671.1,4.52327]
[1727428217263,7.48608,2671.7,2671.1,4.52327]
[1727428217424,7.48608,2671.7,2671.1,5.349991]
[1727428217626,3.74303,2671.7,2671.1,5.349991]
[1727428218038,0.8159,2671.6,2670.7,0.8096]
[1727428218242,0.8159,2671.6,2670.9,0.7868]
[1727428218459,3.74319,2671.6,2671.0,0.453091]
[1727428218665,3.74323,2671.5,2671.1,0.7868]
[1727428219169,3.74336,2671.4,2671.1,0.7868]
[1727428220924,3.74363,2671.2,2670.6,0.7819]
[1727428221127,3.74391,2671.1,2670.6,0.7819]
[1727428224991,3.7435,2671.3,2670.7,0.8271]
[1727428225163,3.7435,2671.3,2670.9,0.8271]
[1727428226304,3.71068918,2671.3,2670.9,0.8271]
[1727428227533,3.74364,2671.2,2670.9,0.8271]
[1727428227689,3.74378,2671.1,2670.9,0.8271]
[1727428229018,0.74544692,2671.1,2670.6,0.7939]
[1727428229225,10.3,2671.7,2670.0,7.34]
[1727428229226,3.74433,2670.7,2670.1,0.7939]
[1727428229523,3.74465,2670.5,2670.2,0.81339]
[1727428229747,3.74433,2670.7,2670.1,3.74514]
[1727428230046,3.74408,2670.9,2670.3,0.7939]
[1727428230851,7.48827,2670.9,2670.3,0.7939]
[1727428231045,3.74408,2670.9,2670.3,0.7939]
[1727428231245,3.74446,2670.7,2670.3,0.7939]
[1727428233251,7.3,2671.1,2670.5,0.821]
[1727428233252,11.04382,2671.1,2670.5,0.821]
[1727428233457,3.74395,2671.0,2670.6,0.456575]
[1727428234156,3.74395,2671.0,2670.7,0.821]
[1727428234453,3.74352,2671.3,2670.7,0.821]
[1727428234613,3.74372,2671.2,2670.7,0.821]
[1727428234809,3.74372,2671.2,2670.8,0.5022035]
[1727428235041,3.74372,2671.2,2670.9,0.7685]
[1727428235349,3.7435,2671.3,2670.9,0.7685]
[1727428235839,3.7435,2671.3,2670.9,1.26999335]
[1727428236043,3.74364,2671.2,2670.9,1.26999335]
[1727428236246,3.74364,2671.2,2670.9,0.7685]
[1727428236439,3.7435,2671.3,2670.9,0.7685]
[1727428236440,3.74378,2671.1,2670.9,0.7685]
[1727428237761,3.74378,2671.1,2670.7,0.8262]
[1727428237961,3.74407,2670.9,2670.7,0.8262]
[1727428238197,3.74407,2670.9,2670.5,0.8262]
[1727428239281,3.74442,2670.7,2670.5,0.8262]
[1727428239759,0.7638,2671.0,2670.5,0.8262]
[1727428240086,3.74444,2670.7,2670.5,0.8262]
[1727428240697,3.74444,2670.7,2670.1,0.7605]
[1727428240930,3.74496,2670.3,2670.1,0.7605]
[1727428241384,3.74468,2670.5,2670.1,0.7605]
[1727428241385,4.29476,2670.4,2670.1,0.7605]
[1727428242004,3.74491,2670.3,2670.1,0.7605]
[1727428242173,4.29503,2670.2,2670.1,0.7605]
[1727428242360,4.29503,2670.2,2669.9,0.7605]
[1727428243399,0.55,2670.2,2669.9,0.7605]
[1727428245167,4.29506,2670.2,2669.9,0.7605]
[1727428248170,0.55,2670.2,2669.9,0.7605]
[1727428248609,3.74533,2670.0,2669.6,0.7881]
[1727428248918,3.74533,2670.0,2669.6,1.462709]
[1727428249622,3.74546,2669.9,2669.6,0.7881]
[1727428249832,4.57136,2669.9,2669.3,0.7702]
[1727428249981,0.8259,2669.9,2669.3,0.7702]
[1727428250185,3.746,2669.6,2669.1,0.8088]
[1727428251905,4.29563,2669.8,2669.1,4.55537]
[1727428252112,4.29563,2669.8,2669.2,4.201902]
[1727428252281,0.55,2669.9,2669.4,3.74615]
[1727428252487,4.29548,2669.9,2669.4,0.8712652]
[1727428252720,4.29548,2669.9,2669.3,0.7646]
[1727428252880,0.55,2669.9,2669.3,0.7646]
[1727428253320,3.74536,2670.0,2669.3,0.7646]
[1727428253887,4.29517,2670.1,2669.5,3.74599]
[1727428254198,4.29517,2670.1,2669.5,0.825661]
[1727428255330,0.55,2670.1,2669.6,4.53917]
[1727428255624,4.2949,2670.3,2669.7,3.74571]
[1727428255829,4.2949,2670.3,2669.8,0.828488]
[1727428256231,3.74507,2670.2,2669.8,0.828488]
[1727428260341,7.49024,2670.2,2669.8,0.828488]
[1727428260537,3.74519,2670.1,2669.8,0.828488]
[1727428260909,3.74519,2670.1,2669.6,0.7934]
[1727428261541,4.29499,2670.3,2669.6,4.53926]
[1727428261714,3.74513,2670.2,2669.6,8.28505]
[1727428261913,3.74513,2670.2,2669.6,4.53919]